fUSD/lending_fUSD_20250421
["ID","MTS","AMOUNT","RATE_DAILY","PERIOD"]
[358480451,1745199038488,-200.0,0.00047,2]
[358480452,1745199038497,-162.79,0.00047042,120]
[358480453,1745199038507,-1054.87,0.00047075,2]
[358480454,1745199038516,-165.73,0.00047092,2]
[358480455,1745199038525,-1000.0,0.00047092,2]
[358480456,1745199038534,-903.12571188,0.0004789,20]
[358480457,1745199038544,-16330.3829492,0.0004798,3]
[358480458,1745199038553,-211.0,0.0004799,2]
[358480459,1745199038562,-2019.53170922,0.0004829,2]
[358480460,1745199038571,-869.65097801,0.0004829,7]
[358480461,1745199038580,-1035.30256841,0.0004829,7]
[358480462,1745199038589,-1281.98531824,0.0004829,4]
[358480463,1745199038599,-464.27902711,0.0004829,7]
[358480464,1745199038608,-417.60282905,0.0004829,7]
[358480465,1745199038617,-271.95990787,0.0004829,7]
[358480466,1745199038626,-919.06989572,0.0004829,3]
[358480467,1745199038634,-2051.75559547,0.0004829,3]
[358480468,1745199038643,-6767.12873164,0.0004829,4]
[358480469,1745199038652,-5193.49676912,0.0004829,4]
[358480470,1745199038661,-7796.10191327,0.0004829,2]
[358480471,1745199038670,-19182.63185889,0.0004829,2]
[358480472,1745199038680,-935.99032625,0.0004829,2]
[358480473,1745199038688,-6805.95929434,0.00048411,15]
[358480474,1745199038698,-1658.25462253,0.000488,120]
[358480475,1745199038707,-1054.87,0.00049339,2]
[358480476,1745199038716,-211.0,0.0004938,2]
[358480477,1745199038725,-3000.0,0.000495,2]
[358480478,1745199038734,-506.66066416,0.00049552,10]
[358480479,1745199038743,-16330.3829492,0.0004998,4]
[358480480,1745199038752,-24636.9389468,0.0004998,4]
[358480481,1745199038762,-4106.15649114,0.00049988,4]
[358480482,1745199038771,-42836.38828442,0.0004999,2]
[358480483,1745199038780,-16317.25512614,0.0004999,4]
[358480484,1745199038856,-13.12782306,0.0004999,4]
[358480485,1745199038866,-1032.92365232,0.0004999,4]
[358480486,1745199038877,-332.19999999,0.0004999,4]
[358480487,1745199038887,-435.68147868,0.0004999,4]
[358480490,1745199039882,-9096.64373114,0.0004999,4]
[358480491,1745199039894,-5527.17710247,0.0004999,4]
[358480492,1745199039903,-159.17,0.0004999,120]
[358480493,1745199039912,-1536.0,0.00049998,10]
[358480494,1745199039922,-1724.87169226,0.0005,2]
[358480495,1745199039933,-8943.78386462,0.0005,2]
[358480496,1745199039944,-9077.54866152,0.0005,2]
[358480497,1745199039955,-8943.84023489,0.0005,2]
[358480498,1745199039966,-1170.76145322,0.0005,2]
[358480499,1745199039977,-309.68293245,0.0005,2]
[358480500,1745199039989,-2558.28430514,0.0005,2]
[358480501,1745199039999,-1139.01512331,0.0005,2]
[358480502,1745199040008,-1519.17207462,0.0005,2]
[358480503,1745199040017,-2559.99621064,0.0005,2]
[358480504,1745199040029,-1868.6406346,0.0005,2]
[358480505,1745199040038,-150.0,0.0005014,120]
[358480506,1745199040048,-173.85241379,0.00050162,4]
[358480507,1745199040058,-697.42656362,0.00050162,4]
[358480508,1745199040075,-4185.26132026,0.00050162,4]
[358480509,1745199040086,-426.05,0.00050162,4]
[358480510,1745199040268,-2000.0,0.00050162,4]
[358480511,1745199040281,-729.72268461,0.00050162,4]
[358480512,1745199040291,-2543.9221808,0.00050171,4]
[358480513,1745199040302,-8261.93562539,0.00050171,4]
[358480514,1745199040350,-302.55301276,0.00050171,4]
[358480522,1745199042792,-417.69691224,0.0004119,2]
[358480523,1745199042804,-690.50000005,0.0004119,2]
[358480524,1745199042816,-982.33108771,0.0004119,2]
[358480525,1745199042826,-5221.97213025,0.00050171,4]
[358480526,1745199042837,-976.61659309,0.00050181,8]
[358480527,1745199042846,-976.61659309,0.00050181,8]
[358480528,1745199042856,-4106.15649114,0.00050691,4]
[358480529,1745199042866,-307.59593493,0.00051,2]
[358480530,1745199042876,-1054.87,0.00051603,2]
[358480531,1745199042887,-150.0,0.00051609,120]
[358480532,1745199042897,-4106.15649114,0.00051712,4]
[358480533,1745199042907,-6805.95929434,0.00051722,15]
[358480534,1745199042917,-165.73,0.00051801,2]
[358480535,1745199042926,-151.0,0.00052,120]
[358480536,1745199042936,-157.0,0.00052,120]
[358480537,1745199042946,-4106.15649114,0.0005299,4]
[358480538,1745199042955,-5002.39999997,0.00053,5]
[358480539,1745199042965,-150.0,0.00053241,120]
[358480540,1745199042974,-2151.0,0.00053664,10]
[358480541,1745199042984,-234.79,0.00053771,2]
[358480542,1745199042994,-1054.87,0.00053867,2]
[358480543,1745199043003,-231.17058901,0.00054247,120]
[358480544,1745199043013,-276.97629818,0.00054615,4]
[358480545,1745199043026,-2509.16923208,0.00054615,4]
[358480546,1745199043037,-1627.05487211,0.00054615,4]
[358480547,1745199043842,-3799.11257991,0.00054615,4]
[358480548,1745199043852,-16330.3829492,0.00054626,4]
[358480549,1745199043862,-8212.31298228,0.00054754,4]
[358480550,1745199043871,-16330.3829492,0.00054764,4]
[358480551,1745199043880,-8212.31298228,0.00054774,4]
[358480552,1745199043890,-184.47,0.00054781,14]
[358480553,1745199043899,-196.74,0.00054781,60]
[358480554,1745199043909,-16330.3829492,0.00054784,4]
[358480555,1745199043918,-20530.7824557,0.00054784,4]
[358480556,1745199043927,-1154.68789898,0.00054793,90]
[358480557,1745199043936,-1154.68789898,0.00054793,90]
[358480558,1745199043945,-500.0,0.00054794,2]
[358480559,1745199043954,-500.0,0.00054794,2]
[358480560,1745199043963,-500.0,0.00054794,2]
[358480561,1745199043973,-500.0,0.00054794,2]
[358480562,1745199043982,-500.0,0.00054794,2]
[358480563,1745199043991,-500.0,0.00054794,15]
[358480564,1745199044001,-500.0,0.00054794,15]
[358480565,1745199044010,-500.0,0.00054794,15]
[358480566,1745199044019,-500.0,0.00054794,15]
[358480567,1745199044028,-566.12876596,0.00054794,15]
[358480568,1745199044037,-639.98,0.00054794,2]
[358480569,1745199044048,-500.0,0.00054794,2]
[358480570,1745199044058,-1000.0,0.00054794,2]
[358480571,1745199044067,-1000.0,0.00054794,2]
[358480572,1745199044081,-1000.0,0.00054794,2]
[358480573,1745199044091,-1000.0,0.00054794,2]
[358480574,1745199044101,-1000.0,0.00054794,2]
[358480575,1745199044111,-1000.0,0.00054794,2]
[358480576,1745199044122,-1000.0,0.00054794,2]
[358480577,1745199044133,-1004.98851559,0.00054794,2]
[358480578,1745199044142,-500.0,0.00054794,20]
[358480579,1745199044153,-500.0,0.00054794,120]
[358480580,1745199044163,-645.13,0.00054794,12]
[358480581,1745199044173,-500.0,0.00054794,7]
[358480582,1745199044183,-500.0,0.00054794,120]
[358480583,1745199044193,-609.12641063,0.00054794,120]
[358480584,1745199044202,-537.06,0.00054794,14]
[358480585,1745199044211,-500.0,0.00054794,120]
[358480586,1745199044220,-385.76486792,0.00054794,120]
[358480587,1745199044229,-500.0,0.00054794,120]
[358480588,1745199044239,-1250.0,0.00054794,2]
[358480589,1745199044248,-1250.0,0.00054794,2]
[358480590,1745199044257,-1250.0,0.00054794,2]
[358480591,1745199044266,-1250.0,0.00054794,2]
[358480592,1745199044275,-1250.0,0.00054794,2]
[358480593,1745199044285,-500.0,0.00054794,120]
[358480594,1745199044295,-500.0,0.00054794,120]
[358480595,1745199044305,-500.0,0.00054794,120]
[358480596,1745199044314,-500.0,0.00054794,120]
[358480597,1745199044323,-500.0,0.00054794,120]
[358480598,1745199044332,-500.0,0.00054794,120]
[358480599,1745199044342,-439.83674234,0.00054794,120]
[358480600,1745199044364,-500.0,0.00054794,120]
[358480601,1745199044373,-546.56969629,0.00054794,120]
[358480602,1745199044383,-500.0,0.00054794,120]
[358480603,1745199044394,-166.23479467,0.00054794,120]
[358480604,1745199044404,-500.0,0.00054794,8]
[358480605,1745199044415,-164.64574267,0.00054794,2]
[358480606,1745199044425,-550.26545113,0.00054794,120]
[358480607,1745199044435,-500.0,0.00054794,2]
[358480608,1745199044444,-500.0,0.00054794,120]
[358480609,1745199044454,-500.0,0.00054794,120]
[358480610,1745199044463,-558.64128294,0.00054794,120]
[358480611,1745199044473,-4298.59,0.00054794,2]
[358480612,1745199044482,-577.61,0.00054794,120]
[358480613,1745199044492,-500.0,0.00054794,120]
[358480614,1745199044502,-500.0,0.00054794,120]
[358480615,1745199044513,-504.53590563,0.00054794,120]
[358480616,1745199044523,-500.0,0.00054794,120]
[358480617,1745199044534,-500.0,0.00054794,120]
[358480618,1745199044543,-500.0,0.00054794,120]
[358480619,1745199044553,-585.60375799,0.00054794,16]
[358480620,1745199044562,-567.95305927,0.00054794,120]
[358480621,1745199044571,-500.0,0.00054794,2]
[358480622,1745199044581,-500.0,0.00054794,2]
[358480623,1745199044591,-175.89315656,0.00054794,120]
[358480624,1745199044601,-506.79608338,0.00054794,120]
[358480625,1745199044610,-500.0,0.00054794,120]
[358480626,1745199044620,-500.0,0.00054794,120]
[358480627,1745199044629,-500.5006873,0.00054794,2]
[358480628,1745199044639,-501.62396758,0.00054794,2]
[358480629,1745199044649,-500.0,0.00054794,3]
[358480630,1745199044658,-502.01817756,0.00054794,2]
[358480631,1745199044668,-211.62301897,0.00054794,120]
[358480632,1745199044677,-500.0,0.00054794,2]
[358480633,1745199044686,-508.29858572,0.00054794,2]
[358480634,1745199044695,-585.93948652,0.00054794,120]
[358480635,1745199044705,-329.73125012,0.00054794,120]
[358480636,1745199044714,-552.66628055,0.00054794,120]
[358480637,1745199044724,-468.42602457,0.00054795,120]
[358480638,1745199044733,-1000.0,0.0005483,20]
[358480639,1745199044742,-1000.0,0.00054967,20]
[358480640,1745199044751,-8212.31298228,0.0005498,4]
[358480641,1745199044761,-16330.3829492,0.0005499,4]
[358480642,1745199044771,-405.62273348,0.00055,2]
[358480643,1745199044781,-1006.03846098,0.00055,2]
[358480644,1745199044790,-4106.15649114,0.00055023,4]
[358480645,1745199044800,-6805.95929434,0.00055033,15]
[358480646,1745199044810,-226.0,0.00055086,120]
[358480647,1745199044819,-1000.0,0.00055104,20]
[358480648,1745199044828,-1000.0,0.00055241,20]
[358480649,1745199044840,-623.0,0.00055241,20]
[358480650,1745199044850,-8212.31298228,0.00055322,4]
[358480651,1745199044859,-4106.15649114,0.00055331,4]
[358480652,1745199044869,-16330.3829492,0.00055332,4]
[358480653,1745199044879,-4106.15649114,0.00055332,4]
[358480654,1745199044889,-500.0,0.00055341,2]
[358480655,1745199044899,-1250.0,0.00055341,2]
[358480656,1745199044909,-1250.0,0.00055341,2]
[358480657,1745199044919,-639.98,0.00055342,2]
[358480658,1745199044929,-500.0,0.00055342,2]
[358480659,1745199044939,-500.0,0.00055342,20]
[358480660,1745199044948,-500.0,0.00055342,120]
[358480661,1745199044957,-645.13,0.00055342,12]
[358480662,1745199044967,-534.92011346,0.00055342,7]
[358480663,1745199044977,-564.12111774,0.00055342,120]
[358480664,1745199044986,-537.06,0.00055342,14]
[358480665,1745199044995,-500.0,0.00055342,120]
[358480666,1745199045005,-170.38833451,0.00055342,120]
[358480667,1745199045015,-279.12381441,0.00055342,120]
[358480668,1745199045024,-500.0,0.00055342,120]
[358480669,1745199045033,-500.0,0.00055342,120]
[358480670,1745199045043,-500.0,0.00055342,120]
[358480671,1745199045053,-500.0,0.00055342,8]
[358480672,1745199045062,-500.0,0.00055342,120]
[358480673,1745199045076,-4298.59,0.00055342,2]
[358480674,1745199045085,-500.0,0.00055342,120]
[358480675,1745199045097,-500.0,0.00055342,120]
[358480676,1745199045106,-500.0,0.00055342,2]
[358480677,1745199045117,-502.56895293,0.00055342,2]
[358480678,1745199045126,-500.0,0.00055342,3]
[358480679,1745199045136,-503.81515436,0.00055342,3]
[358480680,1745199045145,-500.0,0.00055342,2]
[358480681,1745199045155,-150.0,0.00055526,120]
[358480682,1745199045165,-244.33491417,0.00055841,120]
[358480683,1745199045174,-8212.31298228,0.0005588,4]
[358480684,1745199045183,-639.98,0.0005589,2]
[358480685,1745199045193,-500.0,0.0005589,2]
[358480686,1745199045202,-500.0,0.0005589,20]
[358480687,1745199045212,-500.0,0.0005589,120]
[358480688,1745199045221,-645.13,0.0005589,12]
[358480689,1745199045231,-537.06,0.0005589,14]
[358480690,1745199045241,-500.0,0.0005589,120]
[358480691,1745199045250,-500.0,0.0005589,120]
[358480692,1745199045259,-500.0,0.0005589,8]
[358480693,1745199045268,-500.0,0.0005589,120]
[358480694,1745199045278,-4298.59,0.0005589,2]
[358480695,1745199045287,-500.0,0.0005589,120]
[358480696,1745199045296,-514.87179454,0.0005589,120]
[358480697,1745199045306,-500.57626244,0.0005589,2]
[358480698,1745199045315,-157.0,0.00056,120]
[358480699,1745199045324,-1054.87,0.00056131,2]
[358480700,1745199045335,-8212.31298228,0.00056418,4]
[358480701,1745199045346,-16330.3829492,0.00056428,4]
[358480702,1745199045355,-4106.15649114,0.00056428,4]
[358480703,1745199045364,-1250.0,0.00056437,2]
[358480704,1745199045373,-500.0,0.00056437,120]
[358480705,1745199045382,-639.98,0.00056438,2]
[358480706,1745199045392,-500.0,0.00056438,2]
[358480707,1745199045401,-364.66279463,0.00056438,20]
[358480708,1745199045410,-645.13,0.00056438,12]
[358480709,1745199045420,-537.06,0.00056438,14]
[358480710,1745199045429,-500.0,0.00056438,120]
[358480711,1745199045438,-500.0,0.00056438,120]
[358480712,1745199045448,-500.0,0.00056438,8]
[358480714,1745199045457,-500.0,0.00056438,120]
[358480715,1745199045466,-4298.59,0.00056438,2]
[358480716,1745199045476,-500.0,0.00056438,120]
[358480717,1745199045485,-165.73,0.0005651,2]
[358480718,1745199045494,-4106.15649114,0.00056682,4]
[358480719,1745199045504,-237.0,0.00056959,120]
[358480720,1745199045513,-639.98,0.00056986,2]
[358480721,1745199045522,-500.0,0.00056986,2]
[358480722,1745199045531,-645.13,0.00056986,12]
[358480723,1745199045540,-537.06,0.00056986,14]
[358480724,1745199045550,-500.0,0.00056986,120]
[358480725,1745199045560,-500.0,0.00056986,8]
[358480727,1745199045570,-500.0,0.00056986,120]
[358480729,1745199045579,-4298.59,0.00056986,2]
[358480730,1745199045588,-579.70424895,0.00056986,120]
[358480731,1745199045597,-514.43,0.00057052,30]
[358480732,1745199045606,-4106.15649114,0.0005726,4]
[358480733,1745199045616,-8212.31298228,0.00057494,4]
[358480734,1745199045626,-945.80317191,0.000575,30]
[358480735,1745199045635,-16330.3829492,0.00057505,4]
[358480736,1745199045644,-8212.31298228,0.00057505,4]
[358480737,1745199045654,-8212.31298228,0.00057514,4]
[358480738,1745199045663,-20530.7824557,0.00057514,4]
[358480739,1745199045672,-16330.3829492,0.00057524,4]
[358480740,1745199045682,-32660.7658984,0.00057524,4]
[358480741,1745199045691,-1250.0,0.00057533,2]
[358480742,1745199045701,-199.66817015,0.00057533,120]
[358480743,1745199045710,-639.98,0.00057534,2]
[358480744,1745199045720,-500.0,0.00057534,2]
[358480745,1745199045729,-645.13,0.00057534,12]
[358480746,1745199045739,-537.06,0.00057534,14]
[358480747,1745199045749,-500.0,0.00057534,120]
[358480748,1745199045758,-500.0,0.00057534,8]
[358480749,1745199045768,-500.0,0.00057534,120]
[358480750,1745199045777,-4298.59,0.00057534,2]
[358480751,1745199045787,-1000.0,0.00057534,21]
[358480752,1745199045797,-1000.0,0.00057534,21]
[358480753,1745199045807,-1000.0,0.00057534,21]
[358480754,1745199045816,-1000.0,0.00057534,21]
[358480755,1745199045826,-1000.0,0.00057534,21]
[358480756,1745199045836,-1000.0,0.00057534,21]
[358480757,1745199045846,-1000.0,0.00057534,21]
[358480758,1745199045856,-1000.0,0.00057534,21]
[358480759,1745199045866,-1000.0,0.00057534,21]
[358480760,1745199045876,-1000.0,0.00057534,21]
[358480761,1745199045885,-1000.0,0.00057534,21]
[358480762,1745199045895,-1000.0,0.00057534,21]
[358480763,1745199045905,-1000.0,0.00057534,21]
[358480764,1745199045915,-1000.0,0.00057534,21]
[358480765,1745199045925,-1000.0,0.00057534,21]
[358480766,1745199045935,-1000.0,0.00057534,21]
[358480767,1745199045944,-1000.0,0.00057534,21]
[358480768,1745199045954,-1000.0,0.00057534,21]
[358480769,1745199045964,-1000.0,0.00057534,21]
[358480770,1745199045974,-1000.0,0.00057534,21]
[358480771,1745199045984,-1000.0,0.00057534,21]
[358480772,1745199045993,-1000.0,0.00057534,21]
[358480773,1745199046003,-1000.0,0.00057534,21]
[358480774,1745199046013,-1000.0,0.00057534,21]
[358480775,1745199046022,-1000.0,0.00057534,21]
[358480776,1745199046031,-1000.0,0.00057534,21]
[358480777,1745199046040,-1000.0,0.00057534,21]
[358480778,1745199046049,-1000.0,0.00057534,21]
[358480779,1745199046059,-1000.0,0.00057534,21]
[358480780,1745199046068,-1000.0,0.00057534,21]
[358480781,1745199046080,-1000.0,0.00057534,21]
[358480782,1745199046090,-1000.0,0.00057534,21]
[358480783,1745199046099,-1000.0,0.00057534,21]
[358480784,1745199046108,-1000.0,0.00057534,21]
[358480785,1745199046118,-1000.0,0.00057534,21]
[358480786,1745199046130,-1000.0,0.00057534,21]
[358480787,1745199046139,-1000.0,0.00057534,21]
[358480788,1745199046149,-1000.0,0.00057534,21]
[358480790,1745199046159,-1000.0,0.00057534,21]
[358480792,1745199046169,-1000.0,0.00057534,21]
[358480793,1745199046177,-1000.0,0.00057534,21]
[358480794,1745199046187,-1000.0,0.00057534,21]
[358480795,1745199046196,-1000.0,0.00057534,21]
[358480796,1745199046206,-1000.0,0.00057534,21]
[358480797,1745199046215,-1000.0,0.00057534,21]
[358480798,1745199046224,-1000.0,0.00057534,21]
[358480799,1745199046233,-1000.0,0.00057534,21]
[358480801,1745199046243,-1000.0,0.00057534,21]
[358480802,1745199046252,-1000.0,0.00057534,21]
[358480803,1745199046261,-1000.0,0.00057534,21]
[358480804,1745199046271,-1000.0,0.00057534,21]
[358480805,1745199046280,-1000.0,0.00057534,21]
[358480806,1745199046289,-1000.0,0.00057534,21]
[358480807,1745199046298,-1000.0,0.00057534,21]
[358480808,1745199046307,-1000.0,0.00057534,21]
[358480809,1745199046317,-1000.0,0.00057534,21]
[358480810,1745199046326,-1000.0,0.00057534,21]
[358480811,1745199046335,-1000.0,0.00057534,21]
[358480812,1745199046346,-1000.0,0.00057534,21]
[358480813,1745199046355,-1000.0,0.00057534,21]
[358480814,1745199046365,-1000.0,0.00057534,21]
[358480815,1745199046374,-1000.0,0.00057534,21]
[358480816,1745199046384,-1000.0,0.00057534,21]
[358480817,1745199046393,-1000.0,0.00057534,21]
[358480818,1745199046402,-1000.0,0.00057534,21]
[358480819,1745199046412,-1000.0,0.00057534,21]
[358480820,1745199046421,-1000.0,0.00057534,21]
[358480821,1745199046430,-1000.0,0.00057534,21]
[358480822,1745199046440,-1000.0,0.00057534,21]
[358480823,1745199046449,-1000.0,0.00057534,21]
[358480824,1745199046458,-1000.0,0.00057534,21]
[358480825,1745199046468,-1000.0,0.00057534,21]
[358480826,1745199046478,-1000.0,0.00057534,21]
[358480827,1745199046487,-909.0,0.00057534,21]
[358480828,1745199046497,-1000.0,0.00057534,21]
[358480829,1745199046507,-1000.0,0.00057534,21]
[358480830,1745199046516,-1000.0,0.00057534,21]
[358480831,1745199046525,-1000.0,0.00057534,21]
[358480832,1745199046534,-1000.0,0.00057534,21]
[358480833,1745199046544,-1000.0,0.00057534,21]
[358480834,1745199046553,-1000.0,0.00057534,21]
[358480835,1745199046562,-3011.0,0.00057599,10]
[358480836,1745199046571,-1000.0,0.00058,2]
[358480837,1745199046581,-150.0,0.00058,120]
[358480838,1745199046592,-151.0,0.00058,120]
[358480839,1745199046601,-150.0,0.00058,120]
[358480840,1745199046610,-151.0,0.00058,120]
[358480841,1745199046619,-639.98,0.00058082,2]
[358480842,1745199046628,-492.29036286,0.00058082,2]
[358480843,1745199046638,-645.13,0.00058082,12]
[358480844,1745199046646,-537.06,0.00058082,14]
[358480845,1745199046656,-500.0,0.00058082,120]
[358480846,1745199046668,-500.0,0.00058082,8]
[358480847,1745199046678,-500.0,0.00058082,120]
[358480848,1745199046688,-4298.59,0.00058082,2]
[358480849,1745199046697,-151.0,0.00058329,120]
[358480850,1745199046707,-16330.3829492,0.00058334,4]
[358480851,1745199046717,-6805.95929434,0.00058344,15]
[358480852,1745199046726,-1054.87,0.00058395,2]
[358480853,1745199046735,-639.98,0.0005863,2]
[358480854,1745199046746,-645.13,0.0005863,12]
[358480855,1745199046755,-537.06,0.0005863,14]
[358480856,1745199046765,-500.0,0.0005863,120]
[358480857,1745199046774,-500.0,0.0005863,8]
[358480858,1745199046783,-500.0,0.0005863,120]
[358480859,1745199046793,-4298.59,0.0005863,2]
[358480860,1745199046802,-202.17777684,0.00058821,14]
[358480861,1745199046811,-200.0,0.000589,14]
[358480862,1745199046820,-503.26592607,0.00059087,15]
[358480863,1745199046830,-150.0,0.00059125,120]
[358480864,1745199046840,-639.98,0.00059178,2]
[358480865,1745199046849,-645.13,0.00059178,12]
[358480866,1745199046859,-537.06,0.00059178,14]
[358480867,1745199046868,-500.0,0.00059178,120]
[358480868,1745199046878,-500.0,0.00059178,8]
[358480869,1745199046887,-500.0,0.00059178,120]
[358480870,1745199046896,-4298.59,0.00059178,2]
[358480871,1745199046905,-1250.0,0.00059299,2]
[358480872,1745199046915,-150.0,0.000595,2]
[358480873,1745199046924,-16330.3829492,0.00059706,4]
[358480874,1745199046933,-639.98,0.00059726,2]
[358480875,1745199046945,-645.13,0.00059726,12]
[358480876,1745199046954,-537.06,0.00059726,14]
[358480877,1745199046963,-500.0,0.00059726,120]
[358480878,1745199046972,-500.0,0.00059726,8]
[358480879,1745199046982,-500.0,0.00059726,120]
[358480880,1745199046991,-4298.59,0.00059726,2]
[358480881,1745199047000,-331.177402,0.000598,2]
[358480882,1745199047009,-6218.12295861,0.0005987,120]
[358480883,1745199047018,-4810.19038197,0.00059881,2]
[358480884,1745199047027,-8997.46,0.000599,2]
[358480885,1745199047036,-151.0083313,0.000599,120]
[358480886,1745199047046,-16330.3829492,0.0005999,4]
[358480887,1745199047055,-3512.89523831,0.00059999,28]
[358480888,1745199047065,-300.0,0.0006,2]
[358480889,1745199047075,-1002.25291531,0.0006,2]
[358480890,1745199047086,-241.2202452,0.0006,7]
[358480891,1745199047165,-283.16818532,0.0006,7]
[358480892,1745199047174,-239.33181468,0.0006,3]
[358480893,1745199047314,-400.0,0.0006,3]
[358480894,1745199047325,-867.42152122,0.0006,3]
[358480895,1745199047336,-1435.71016166,0.0006,3]
[358480896,1745199047346,-647.22640714,0.0006,120]
[358480897,1745199047357,-409.14193754,0.0006,120]
[358480898,1745199047368,-5391.93214215,0.0006,120]
[358480899,1745199047377,-150.999999,0.0006,120]
[358480900,1745199047387,-157.0,0.0006,120]
[358480901,1745199047396,-639.98,0.00060273,2]
[358480902,1745199047405,-645.13,0.00060273,12]
[358480903,1745199047415,-537.06,0.00060273,14]
[358480904,1745199047424,-500.0,0.00060273,120]
[358480905,1745199047434,-500.0,0.00060273,8]
[358480906,1745199047443,-500.0,0.00060273,120]
[358480907,1745199047453,-4298.59,0.00060273,2]
[358480908,1745199047462,-500.0,0.00060318,120]
[358480909,1745199047472,-705.55,0.000604,120]
[358480910,1745199047481,-150.609,0.00060422,30]
[358480911,1745199047491,-1054.87,0.00060658,2]
[358480912,1745199047501,-649.80808176,0.00060811,5]
[358480913,1745199047513,-15680.57486744,0.00060811,5]
[358480914,1745199047522,-639.98,0.00060821,2]
[358480915,1745199047531,-645.13,0.00060821,12]
[358480916,1745199047540,-537.06,0.00060821,14]
[358480917,1745199047550,-500.0,0.00060821,120]
[358480918,1745199047559,-500.0,0.00060821,8]
[358480919,1745199047569,-500.0,0.00060821,120]
[358480920,1745199047578,-4298.59,0.00060821,2]
[358480921,1745199047587,-639.98,0.00061369,2]
[358480922,1745199047597,-645.13,0.00061369,12]
[358480923,1745199047606,-4.70431722,0.00061369,14]
[358480924,1745199047618,-532.35568278,0.00061369,14]
[358480925,1745199047792,-500.0,0.00061369,120]
[358480926,1745199047802,-500.0,0.00061369,8]
[358480927,1745199047812,-373.95291118,0.00061369,120]
[358480928,1745199047821,-2520.3596249,0.00061369,2]
[358480929,1745199047833,-1778.2303751,0.00061369,2]
[358480930,1745199047844,-2291.00974343,0.00061497,5]
[358480931,1745199048198,-1460.92430294,0.00061497,5]
[358480932,1745199048210,-645.75968916,0.00061497,5]
[358480933,1745199048222,-44593.45511207,0.00061497,5]
[358480934,1745199048232,-82482.37059511,0.00061507,120]
[358480935,1745199048244,-6405.62940489,0.00061507,120]
[358480936,1745199048254,-150.97,0.000616,60]
[358480937,1745199048263,-2000.0,0.00061607,14]
[358480938,1745199048273,-2000.0,0.00061607,14]
[358480939,1745199048283,-2000.0,0.00061607,14]
[358480940,1745199048292,-6805.95929434,0.00061656,15]
[358480941,1745199048302,-4216.0,0.00061823,20]
[358480942,1745199048312,-200.0,0.000619,120]
[358480943,1745199048322,-16330.3829492,0.00061907,5]
[358480944,1745199048331,-639.98,0.00061917,2]
[358480945,1745199048343,-645.13,0.00061917,12]
[358480946,1745199048353,-537.06,0.00061917,14]
[358480947,1745199048362,-500.0,0.00061917,120]
[358480948,1745199048372,-500.0,0.00061917,8]
[358480949,1745199048382,-4298.59,0.00061917,2]
[358480950,1745199048391,-399.71231484,0.00061957,2]
[358480951,1745199048403,-298.02132306,0.00061957,2]
[358480952,1745199048415,-282.78234949,0.00061957,2]
[358480953,1745199048426,-269.48401261,0.00061957,2]
[358480954,1745199048436,-857.30599154,0.00061986,5]
[358480955,1745199048447,-280.45,0.00061986,5]
[358480956,1745199048462,-1000.0,0.00061986,5]
[358480957,1745199048473,-14192.62695766,0.00061986,5]
[358480958,1745199048483,-1250.0,0.00061999,2]
[358480959,1745199048493,-1250.0,0.00061999,2]
[358480960,1745199048502,-65.98952794,0.00061999,2]
[358480961,1745199048514,-1184.01047206,0.00061999,2]
[358480962,1745199048523,-1250.0,0.00061999,2]
[358480963,1745199048533,-1250.0,0.00061999,2]
[358480964,1745199048542,-1250.0,0.00061999,2]
[358480965,1745199048552,-1250.0,0.00061999,2]